Workbook

Sheet Лист1
A1: 25.12.2015г | I1: "Утверждаю"
I2: Руководитель дошкольной образовательной
I3: организации
L4: ____________________
C7: Примерное десятидневное цикличное
E8: МЕНЮ
D9: для организации питания детей в дошкольных учреждениях
G10: с 8 -10 - часовым пребыванием
F12: от 3 до 7 лет
A13: День 1 - ый
A14: Наименование блюд и | D14: Масса | E14: Кол - во | F14: Кол - во | G14: Пищевые вещества | J14: Энергетическая | K14: Витамины | N14: Минеральные
A15: продуктов | D15: порции | E15: (в гр ) | F15: (в гр ) | J15: ценность | L15: мг | N15: вещества
E16: брутто | F16: нетто | G16: белки | H16: жиры | I16: угл-ды | J16: Ккал | K16: В1 | L16: В2 | M16: С | N16: Са | O16: Fe
B17: ЗАВТРАК
A18: Каша манная молочная с маслом | D18: 190/2 | G18: 4.5 | H18: 7.01 | I18: 21.6 | J18: 167 | K18: 0.06 | L18: 0.06 | M18: 0.22 | N18: 125 | O18: 0.42
B19: Крупа манная | E19: 20 | F19: 20
B20: Молоко | E20: 160 | F20: 160
B21: Сахар | E21: 4 | F21: 4
B22: Соль | E22: 1 | F22: 1
B23: Масло сливочное | E23: 2 | F23: 2
A24: Кофейный напиток с молоком | D24: 150 | G24: 1.22 | H24: 1.34 | I24: 11.94166667 | J24: 65 | K24: 0.01 | L24: 0.12 | M24: 0.1916666667 | N24: 40 | O24: 0.075
B25: Кофейный напиток | E25: 1 | F25: 1
B26: Сахар | E26: 9 | F26: 9
B27: Молоко | E27: 40 | F27: 40
B28: Вода | E28: 120 | F28: 120
A29: Бутерброд маслом сливочным | D29: 30/5 | G29: 4.70 | H29: 7.5 | I29: 17.4 | J29: 136 | K29: 0.13 | L29: 1.3 | M29: 0.19 | N29: 10.6 | O29: 0.27
B30: Батон нарезной | E30: 30 | F30: 30
B31: Масло сливочное | E31: 5 | F31: 5
A32: Итого: | G32: =SUM(G18:G31) -> 10.4 | H32: 15.9 | I32: 50.9 | J32: 368 | K32: 0.1983333333 | L32: 1.476666667 | M32: 0.6016666667 | N32: 175.6 | O32: 0.765
B33: 2 - ой ЗАВТРАК
A34: Сок фруктовый | D34: 75 | E34: 75 | F34: 75 | G34: 0.38 | H34: 0.00 | I34: 7.95 | J34: 33 | K34: 0.01 | L34: 0.02 | M34: 1.50 | N34: 5.25 | O34: 1.05 | P34: 1.40
A35: Итого: | G35: =SUM(G34:G34) -> 0.375 | H35: 0 | I35: 7.95 | J35: 33 | K35: 0.0075 | L35: 0.015 | M35: 1.5 | N35: 5.25 | O35: 1.05
B36: ОБЕД
A37: Щи со свежей капустой,картофелем,з/горош. | D37: 200/12/7 | G37: 4.8 | H37: 4.9 | I37: 5.8 | J37: 85 | K37: 0.03 | L37: 0.03 | M37: 8.0 | N37: 29.9 | O37: 0.5
A38: с цыплятами,со сметаной
B39: Цыплята бройлеры | E39: 23.7 | F39: 15.4
B40: Капуста свежая | E40: 80 | F40: 64
B41: Картофель | E41: 24 | F41: 16.8
B42: Морковь | E42: 10.64 | F42: 8
B43: Лук репчатый | E43: 14.3 | F43: 12
B44: Горошек зелёный | E44: 11.5 | F44: 7.5
B45: Томатная паста | E45: 1 | F45: 1
B46: Масло растительное | E46: 3.5 | F46: 3.5
B47: Сметана | E47: 7 | F47: 7
B48: Соль | E48: 1.2 | F48: 1.2
B49: Вода | E49: 160 | F49: 160
A50: Запеканка картофельная с мясом, маслом | D50: 130/2 | G50: 13 | H50: 20.3 | I50: 19.3 | J50: 290 | K50: 0.11 | L50: 0.11 | M50: 2.83 | N50: 21.2 | O50: 2.67
B51: Говядина | F51: 46.8
B52: Масло сливочное | E52: 2.3 | F52: 2.3
B53: Картофель | E53: 183.7 | F53: 110
B54: Лук репчатый | E54: 17.9 | F54: 15
B55: Масло сливочное | E55: 2.3 | F55: 2.3
B56: Сухари панировочные | E56: 2.3 | F56: 2.3
B57: Соль | E57: 1.1 | F57: 1.1
B58: Масло сливочное | E58: 2 | F58: 2
A59: Морковь припущенная (протёртая)с сахаром | D59: 60/5 | E59: 80 | F59: 60 | G59: 0.9 | H59: 0.1 | I59: 10.3 | J59: 46 | K59: 0.03 | L59: 0.03 | M59: 2.28 | N59: 16.2 | O59: 0.36
B60: Морковь | E60: 80 | F60: 60
B61: Сахар | E61: 5 | F61: 5
A62: Компот из урюка | D62: 150 | G62: 0.78 | H62: 0.05 | I62: 15.65 | J62: 67 | K62: 0.02 | L62: 0.02 | M62: 0.6 | N62: 24.9 | O62: 0.48
B63: урюк | E63: 15.0 | F63: 15.0
B64: Сахар | E64: 8.0 | F64: 8.0
A65: Хлеб Сельский | D65: 37.5 | E65: 37.5 | F65: 37.5 | G65: 2.48 | H65: 0.45 | I65: 13.12 | J65: 77 | K65: 0.045 | L65: 0.032 | N65: 8.9 | O65: 0.98
A66: Итого: | G66: =SUM(G37:G65) -> 22.0 | H66: 25.8 | I66: 64.2 | J66: =SUM(J36:J65) -> 565 | K66: 0.2 | L66: 0.2 | M66: 13.7 | N66: 101.1 | O66: 5
B67: ПОЛДНИК
A68: Молоко кипяченое | D68: 150 | E68: 158 | F68: 150 | G68: 4.35 | H68: 3.8 | I68: 7.2 | J68: 81 | K68: 0.06 | L68: 0.23 | M68: 1.95 | N68: 180 | O68: 0.15
A69: Итого: | G69: =SUM(G68:G68) -> 4.4 | H69: 3.8 | I69: 7.2 | J69: 81 | K69: 0.06 | L69: 0.23 | M69: 1.95 | N69: 180 | O69: 0.15 | P69: 0
B70: УЖИН
A71: Фрукты свежие | D71: 75 | E71: 85.5 | F71: 75 | G71: 0.30 | H71: 0.30 | I71: 7.35 | J71: 35 | K71: 0.02 | L71: 0.20 | M71: 7.50 | N71: 12.00 | O71: 1.65
A72: Суфле из творога с повидлом | D72: 100/20 | G72: 18.7 | H72: 5.6 | I72: 22.6 | J72: 216 | K72: 0.075 | L72: 0.6 | M72: 0.39 | N72: 188.15 | O72: 0.56
B73: Творог | E73: 100 | F73: 100
B74: Мука пшеничная | E74: 7.5 | F74: 7.5
B75: Яйца | E75: 6 | F75: 6
B76: Сахар | E76: 9 | F76: 9
B77: Молоко | E77: 15 | F77: 15
B78: Сметана | E78: 7.5 | F78: 7.5
B79: Масло растительное | E79: 1 | F79: 1
B80: Повидло фруктовое | E80: 20 | F80: 20
A81: Чай с сахаром | D81: 150/8 | I81: 8 | J81: 32 | N81: 0.24 | O81: 0.02
B82: Заварка | E82: 0.5 | F82: 0.5
B83: Сахар | E83: 8 | F83: 8
A84: Хлеб белый 1с | D84: 30 | E84: 30 | F84: 30 | G84: 2.3 | H84: 0.9 | I84: 14.9 | J84: 74 | K84: 0.04 | L84: 0.03 | M84: 0 | N84: 6
A85: Итого: | G85: =SUM(G71:G84) -> 21.3 | H85: 6.8 | I85: 52.9 | J85: 357 | K85: 0.1 | L85: 0.8 | M85: 7.9 | N85: 206.4 | O85: 2.23 | P85: =SUM(P73:P84) -> 0
A89: Итого: | G89: =SUM(G87:G88) -> 0.0 | H89: 0.0 | I89: 0.0 | J89: 0 | K89: 0.0 | L89: 0.0 | M89: 0.0 | N89: 0.0 | O89: 0.0
A90: ВСЕГО: | G90: =SUM(G89,G85,G69,G66,G35,G32) -> 58.4 | H90: 52.1 | I90: 183.1 | J90: 1404 | K90: 0.6 | L90: 2.8 | M90: 25.7 | N90: 668.3 | O90: 9.2 | P90: =P32+P35+P66+P69+P85+#REF! -> 
A94: День 2 - ой
A95: Наименование блюд и | D95: Масса | E95: Кол - во | F95: Кол - во | G95: Пищевые вещества | J95: Энергетическая | K95: Витамины | N95: Минеральные
A96: продуктов | D96: порции | E96: (в гр ) | F96: (в гр ) | J96: ценность | L96: мг | N96: вещества
E97: брутто | F97: нетто | G97: белки | H97: жиры | I97: угл-ды | J97: Ккал | K97: В1 | L97: В2 | M97: С | N97: Са | O97: Fe
B98: ЗАВТРАК
A99: Каша Геркулесовая молочная с маслом | D99: 190/2 | G99: 5 | H99: 6.125 | I99: 20 | J99: 155 | K99: 0.1375 | L99: 0.1375 | M99: 0.225 | N99: 138.75 | O99: 1.1625
B100: Крупа Геркулесовая | E100: 24 | F100: 24
B101: Молоко | E101: 100 | F101: 100
B102: Вода | E102: 60 | F102: 60
B103: Сахар | E103: 4 | F103: 4
B104: Соль | E104: 1 | F104: 1
B105: Масло сливочное | E105: 2 | F105: 2
A106: Какао с молоком | D106: 150 | G106: 2.42 | H106: 2.58 | I106: 13.60833333 | J106: 88 | K106: 0.03 | L106: 0.17 | M106: 0.3916666667 | N106: 82.95 | O106: 0.675
B107: Какао порошок | E107: 0.9 | F107: 0.9
B108: Сахар | E108: 9 | F108: 9
B109: Молоко | E109: 80 | F109: 80
B110: Вода | E110: 80 | F110: 80
A111: Бутерброд с сыром, маслом | D111: 30/7/5 | G111: 2.30 | H111: 5.1 | I111: 14.9 | J111: 112 | K111: 0.04 | L111: 0.04 | N111: 6.5
B112: Батон нарезной | E112: 30 | F112: 30
B113: Сыр | E113: 7.5 | F113: 7
B114: Масло сливочное | E114: 5 | F114: 5
A115: Итого: | G115: =SUM(G99:G114) -> 9.716666667 | H115: 13.80833333 | I115: 48.50833333 | J115: 355 | K115: 0.2025 | L115: 0.3441666667 | M115: 0.6166666667 | N115: 228.2 | O115: 1.8375
B116: 2 - ой ЗАВТРАК
A117: Сок фруктовый | D117: 75 | E117: 75 | F117: 75 | G117: 0.38 | H117: 0.00 | I117: 7.95 | J117: 33 | K117: 0.01 | L117: 0.02 | M117: 1.50 | N117: 5.25 | O117: 1.05
A118: Итого: | G118: =SUM(G117) -> 0.38 | I118: =SUM(I117) -> 7.95 | J118: 33 | K118: 0.01 | L118: 0.02 | M118: 1.50 | N118: 5.25 | O118: 1.05
B119: ОБЕД
A120: Борщ со свежей капустой, картофелем, с | D120: 200/10/7 | G120: 4.17 | H120: 6.62 | I120: 9.68 | J120: 111 | K120: 0.04 | L120: 0.05 | M120: 6.52 | N120: 32.16 | O120: 1.02
A121: говядиной,со сметаной
B122: Говядина мягкоть | E122: 16.2 | F122: 16.2
B123: Капуста свежая | E123: 40.0 | F123: 32.0
B124: Картофель | E124: 23.2 | F124: 16.0
B125: Морковь | E125: 16.0 | F125: 12.0
B126: Лук репчатый | E126: 15.2 | F126: 12.0
B127: Свекла | E127: 43.2 | F127: 32.0
B128: Сахар | E128: 1.6 | F128: 1.6
B129: Томатная паста | E129: 1.0 | F129: 1.0
B130: Масло растительное | E130: 3.5 | F130: 3.5
B131: Сметана | E131: 7.0 | F131: 7.0
B132: Соль | E132: 1.2 | F132: 1.2
B133: Вода | E133: 160 | F133: 160.0
A134: Биточки куриные "Солнышко" | D134: 60 | G134: 12.15 | H134: 14.925 | I134: 7.65 | J134: 215 | K134: 0.0525 | L134: 0.1275 | M134: 0.45 | N134: 15.9 | O134: 1.425
B135: Цыплята бройлеры | E135: 75.0 | F135: 49.1
B136: Морковь | E136: 20.0 | F136: 15.0
B137: Лук репчатый | E137: 10.2 | F137: 8.6
B138: Яйцо д.1 | E138: 1.8 | F138: 1.8
B139: соль | E139: 1.0 | F139: 1.0
B140: мука пшеничная | E140: 7.5 | F140: 7.5
B141: Масло растительное | E141: 3.5 | F141: 3.5
A142: Пюре картофельное | D142: 150 | G142: 3.15 | H142: 4.95 | I142: 20.25 | J142: 163 | K142: 0.15 | L142: 0.17 | M142: 10.50 | N142: 35.70 | O142: 1.05
B143: Картофель | E143: 214.3 | F143: 128
B144: Молоко | E144: 25 | F144: 25
B145: Масло сливочное | E145: 4.5 | F145: 4.5
B146: Соль | E146: 1.2 | F146: 1.2
A147: Огурцы соленые (порциями) | P147: 1.40
B148: огурцы соленые | E148: 20 | F148: 20 | G148: 0.16 | H148: 0.02 | I148: 0.34 | J148: 3 | K148: 0.01 | L148: 0.01 | M148: 1.00 | N148: 4.60 | O148: 0.12
A149: Кисель | D149: 150 | I149: 7.5 | J149: 89 | N149: 0.15 | O149: 0.02
B150: Кисель | E150: 13.5 | F150: 13.5
B151: Сахар | E151: 7.5 | F151: 7.5
A152: Хлеб белый 1с | D152: 15 | E152: 15 | F152: 15 | G152: 1.2 | H152: 0.5 | I152: 7.5 | J152: 37 | K152: 0.02 | L152: 0.015 | M152: 0 | N152: 3
A153: Хлеб Сельский | D153: 37.5 | E153: 37.5 | F153: 37.5 | G153: 2.48 | H153: 0.45 | I153: 13.12 | J153: 77 | K153: 0.045 | L153: 0.032 | N153: 8.9 | O153: 0.98
A154: Итого: | G154: =SUM(G120:G153) -> 23.258 | H154: 27.419 | I154: 65.99 | J154: 695 | K154: 0.3 | L154: 0.4 | M154: 18.5 | N154: 100.41 | O154: 4.611
B155: ПОЛДНИК
A156: Молоко кипяченое | D156: 150 | E156: 158 | F156: 150 | G156: 4.35 | H156: 3.8 | I156: 7.2 | J156: 81 | K156: 0.06 | L156: 0.23 | M156: 1.95 | N156: 180 | O156: 0.15
A157: Итого: | G157: =SUM(G156:G156) -> 4.35 | H157: 3.8 | I157: 7.2 | J157: 81 | K157: 0.06 | L157: 0.23 | M157: 1.95 | N157: 180 | O157: 0.15
B158: УЖИН
A159: Фрукты свежие | D159: 75 | E159: 85.5 | F159: 75 | G159: 0.30 | H159: 0.30 | I159: 7.35 | J159: 35 | K159: 0.02 | L159: 0.20 | M159: 7.50 | N159: 12.00 | O159: 1.65
A160: Запеканка вермишелевая с морковью,сыром | D160: 140 | G160: 7.14 | H160: 8.20 | I160: 25.53 | J160: 160 | K160: 0.05 | L160: 0.04 | M160: 0.00 | N160: 9.66 | O160: 0.99
B161: Макаронные изделия | E161: 40 | F161: 40
B162: Морковь | E162: 20 | F162: 15
B163: Масло растительное | E163: 2.5 | F163: 2.5
B164: Сыр | E164: 10.4 | F164: 9.5 | P164: 1.9
B165: Масло сливочное | E165: 3.70 | F165: 3.70
B166: Яйцо д.1 | E166: 2.0 | F166: 2.0
B167: Соль | E167: 1.1 | F167: 1.1
A168: Чай с сахаром | D168: 150/8 | I168: 8 | J168: 32 | N168: 0.24 | O168: 0.02
B169: Заварка | E169: 0.5 | F169: 0.5
B170: Сахар | E170: 8 | F170: 8
A171: Хлеб белый 1с | D171: 15 | E171: 15 | F171: 15 | G171: 1.2 | H171: 0.5 | I171: 7.5 | J171: 37 | K171: 0.02 | L171: 0.015 | M171: 0 | N171: 3
A172: Итого: | G172: =SUM(G159:G171) -> 8.6 | H172: 8.9 | I172: 48.3 | J172: 264 | K172: 0.1 | L172: 0.3 | M172: 7.50 | N172: 24.90 | O172: 2.66
A175: Итого: | G175: =SUM(G174:G174) -> 0.0 | H175: 0.0 | I175: 0.0 | J175: 0 | K175: 0.0 | L175: 0.0 | M175: 0.0 | N175: 0.0 | O175: 0.0
A177: ВСЕГО: | G177: =SUM(G175,G172,G157,G154,G118,G115) -> 46.3 | H177: 53.9 | I177: 178.0 | J177: 1428 | K177: 0.7 | L177: 1.2 | M177: 30.0 | N177: 538.8 | O177: 10.3
A179: День 3 - ий
A180: Наименование блюд и | D180: Масса | E180: Кол - во | F180: Кол - во | G180: Пищевые вещества | J180: Энергетическая | K180: Витамины | N180: Минеральные
A181: продуктов | D181: порции | E181: (в гр ) | F181: (в гр ) | J181: ценность | L181: мг | N181: вещества
E182: брутто | F182: нетто | G182: белки | H182: жиры | I182: угл-ды | J182: Ккал | K182: В1 | L182: В2 | M182: С | N182: Са | O182: Fe
B183: ЗАВТРАК
A184: Каша ячневая молочная с маслом | D184: 190/2 | G184: 4.39 | H184: 4.25 | I184: 19.1425 | J184: 178 | K184: 0.17 | L184: 0.12 | M184: 0.21375 | N184: 131.69375 | O184: 1.104375
B185: Крупа ячневая | E185: 24 | F185: 24
B186: Молоко | E186: 80 | F186: 80
B187: Вода | E187: 80 | F187: 80
B188: Сахар | E188: 4 | F188: 4
B189: Соль | E189: 1 | F189: 1
B190: Масло сливочное | E190: 2 | F190: 2
A191: Кофейный напиток с молоком | D191: 150 | G191: 1.22 | H191: 1.34 | I191: 11.94166667 | J191: 65 | K191: 0.01 | L191: 0.12 | M191: 0.1916666667 | N191: 40 | O191: 0.075
B192: Кофейный напиток | E192: 1 | F192: 1
B193: Сахар | E193: 9 | F193: 9
B194: Молоко | E194: 40 | F194: 40
B195: Вода | E195: 120 | F195: 120
A196: Бутерброд с маслом сливочным | D196: 30/5 | G196: 2.30 | H196: 5.1 | I196: 14.9 | J196: 112 | K196: 0.04 | L196: 0.04 | N196: 6.5
B197: Батон нарезной | E197: 30 | F197: 30
B198: Масло сливочное | E198: 5 | F198: 5
A199: Итого: | G199: =SUM(G184:G198) -> 7.9 | H199: 10.7 | I199: 46.0 | J199: 355 | K199: 0.2 | L199: 0.3 | M199: 0.4 | N199: 178.2 | O199: 1.2
B200: 2 - ой ЗАВТРАК
A201: Сок фруктовый | D201: 75 | E201: 75 | F201: 75 | G201: 0.38 | H201: 0.00 | I201: 7.95 | J201: 33 | K201: 0.01 | L201: 0.02 | M201: 1.50 | N201: 5.25 | O201: 1.05
A202: Итого: | G202: =SUM(G201:G201) -> 0.375 | H202: 0 | I202: 7.95 | J202: 33 | K202: 0.0075 | L202: 0.015 | M202: 1.5 | N202: 5.25 | O202: 1.05
B203: ОБЕД
A204: Рассольник ленинградский с цыплятами, со | D204: 200/12/7 | G204: 3.93 | H204: 5.70 | I204: 12.61 | J204: 119 | K204: 0.072 | L204: 0.96 | M204: 5.52 | N204: 21.016 | O204: 0.936
A205: сметаной
B206: Цыплята | E206: 23.7 | F206: 15.4
B207: Картофель | E207: 58.4 | F207: 35.0
B208: Крупа перловая | E208: 6.0 | F208: 6.0
B209: Морковь | E209: 13.3 | F209: 10.0
B210: Лук репчатый | E210: 12 | F210: 10
B211: Масло растительное | E211: 3.5 | F211: 3.5
B212: Огурцы соленые | E212: 29.1 | F212: 16
B213: Сметана | E213: 7 | F213: 7
... 675 more rows

Sheet Лист2

Sheet Лист3
